Cogmind - Beta 13 @@@ ROGUE MODE // 2024.05.24 @ 11:40:48 Player: Falling_Sands Result: Destroyed by Shrapnel Trap Performance ------------- Evolutions (0) 0 Regions Visited (3) 600 Robots Destroyed (22) 110 Value Destroyed (512) 512 Prototype IDs (0) 0 Alien Tech Used (0) 0 Bonus (0) 0 TOTAL SCORE: 1222 Bonus ------- None Cogmind --------- Core Integrity 0/250 Matter 290/300 Energy 86/125 System Corruption 0% Temperature Cool (2) Movement Walking (190) Ox1 Location -10/Subcaves Parts ------- > --- POWER (1) -------- Light Ion Engine > --- PROPULSION (2) --- Aluminum Leg Aluminum Leg > --- UTILITY (2) ------ Large Storage Unit Tractor Beam > --- WEAPON (2) ------- Light Assault Rifle Light Assault Rifle > --- INVENTORY (15) --- Light Ion Engine Light Treads Aluminum Leg Aluminum Leg Aluminum Leg Improved Heat Sink Medium Storage Unit Subdweller Optics Sensor Array Weapon Shielding Small Laser Light Assault Rifle Light Assault Rifle Grenade Launcher Peak State ------------ > --- POWER ------------ Ion Engine > --- PROPULSION ------- Light Treads Light Treads > --- UTILITY ---------- Large Storage Unit Tractor Beam > --- WEAPON ----------- Assault Rifle Light Assault Rifle > --- INVENTORY -------- Ion Engine Light Ion Engine Wheel Wheel Improved Heat Sink Medium Storage Unit Weapon Shielding Medium Laser Light Assault Rifle Grenade Launcher [Rating: 8] Favorites ----------- Power Ion Engine Engine Ion Engine Propulsion Aluminum Leg Treads Light Treads Leg Aluminum Leg Utility Tractor Beam Device Tractor Beam Storage Large Storage Unit Weapon Light Assault Rifle Energy Gun Medium Laser Ballistic Gun Light Assault Rifle Impact Weapon Hammer Build | -11 -10 -10 -10 ------- Run | Yrd Mat Min Sub Slots Evolved . | . . . . Power . | . . . . Propulsion . | . . . . Utility . | . . . . Weapon . | . . . . Parts Attached 20 | 7 7 5 1 Power 4 | 1 . 2 1 Engine 4 | 1 . 2 1 Core . | . . . . Reactor . | . . . . Propulsion 6 | 2 2 2 . Treads 2 | 2 . . . Leg 4 | . 2 2 . Wheel . | . . . . Hover . | . . . . Flight . | . . . . Utility 4 | 2 2 . . Device 1 | 1 . . . Storage 3 | 1 2 . . Processor . | . . . . Hackware . | . . . . Protection . | . . . . Artifact . | . . . . Weapon 6 | 2 3 1 . Energy Gun 1 | . 1 . . Energy Cannon . | . . . . Ballistic Gun 4 | 2 1 1 . Ballistic Cannon . | . . . . Launcher . | . . . . Special Weapon . | . . . . Impact Weapon 1 | . 1 . . Slashing Weapon . | . . . . Piercing Weapon . | . . . . Special Melee Weapon . | . . . . Unidentified Prototypes . | . . . . Parts Lost 6 | . 2 3 1 Power 3 | . . 2 1 Propulsion 1 | . 1 . . Utility . | . . . . Weapon 2 | . 1 1 . Highest Loss Streak 2 | . 2 2 1 To Critical Strikes . | . . . . Average Slot Usage (%) 99 | . 100 99 99 Engine 13 | . 14 13 13 Treads 10 | . 19 . . Leg 17 | . 8 28 28 Device 14 | . 14 14 14 Storage 14 | . 14 14 14 Energy Gun 4 | . 4 5 . Ballistic Gun 23 | . 23 22 28 Naked Turns . | . . . . Heaviest Build 29 | 14 29 29 26 Greatest Support 40 | 40 40 20 20 Greatest Overweight (x) 1 | . 1 1 1 Average Overweight (x) . | . . 1 1 Largest Inventory Capacity 15 | 8 15 15 15 Average Capacity 13 | 7 12 15 15 Most Carried 15 | 7 15 15 15 Average Carried 11 | 4 10 14 14 Final Capacity 15 | 8 15 15 15 Final Carried 15 | 7 15 14 14 Class Distribution -------------------- 69% | Mutant 30% | Scavenger-Mutant Dominant Class ---------------- Mutant | -10/Materials Scavenger-Mutant | -10/Mines Scavenger-Mutant | -10/Subcaves Resources | -11 -10 -10 -10 ----------- Run | Yrd Mat Min Sub Matter Collected 596 | 272 242 64 18 Remotely 368 | 44 242 64 18 Salvage Created 714 | 118 415 132 49 Parts 49 | 7 26 12 4 Haulers Intercepted . | . . . . Recyclers Shooed 1 | . 1 . . Parts Field Recycled . | . . . . Retrieved Matter . | . . . . Parts Self-Destructed . | . . . . Prevented . | . . . . Kills | -11 -10 -10 -10 ------- Run | Yrd Mat Min Sub Combat Hostiles Destroyed 17 | . 11 5 1 Guns 17 | . 11 5 1 Classes Destroyed 7 | 3 3 . 1 Worker 1 | 1 . . . Tunneler 1 | 1 . . . Recycler 1 | 1 . . . Watcher 2 | . 2 . . Swarmer 6 | . 3 3 . Grunt 10 | . 8 2 . Subdweller 1 | . . . 1 Best Kill Streak 4 | 2 3 4 1 Combat Bots Only 4 | . 3 4 1 Max Kills in Single Turn 2 | 1 1 2 1 Gunslinging 1 | . . 1 . Exploded . | . . . . Melee . | . . . . Uniques/NPCs Destroyed . | . . . . Combat | -11 -10 -10 -10 -------- Run | Yrd Mat Min Sub Hostile Shots Fired 99 | . 55 36 8 Missed 26 | . 16 8 2 Damage Taken 1030 | . 475 334 221 Core 279 | . 65 118 96 Absorbed by Shields . | . . . . Core Remaining (%) 100 | 100 . . . Volleys Fired 89 | 7 52 26 4 Largest 2 | 2 2 2 2 Hottest 70 | 40 70 70 40 Shots Fired 175 | 13 104 50 8 Gun 175 | 13 104 50 8 Cannon . | . . . . Launcher . | . . . . Special . | . . . . Kinetic 138 | 13 87 30 8 Thermal 37 | . 17 20 . Explosive . | . . . . Electromagnetic . | . . . . Robot Hit Streak 11 | 6 10 9 11 Robot Miss Streak 9 | 4 9 3 . Penetration Max . | . . . . Secondary Targets 4 | . 3 1 . Max Gunslinging Chain 1 | . 1 1 . Shots Hit Robots 103 | 6 55 34 8 Core Hits 43 | 4 25 10 4 Critical Kills 1 | . 1 . . Critical Parts Destroyed . | . . . . Critical Strikes 4 | . 3 1 . Burn 3 | . 2 1 . Destroy 1 | . 1 . . Melee Attacks 1 | . 1 . . Impact 1 | . 1 . . Slashing . | . . . . Piercing . | . . . . Sneak Attacks . | . . . . Combat Hostiles . | . . . . Follow-up Attacks . | . . . . Damage Inflicted 1060 | 66 591 336 67 Guns 1060 | 66 591 336 67 Cannons . | . . . . Explosions . | . . . . Melee . | . . . . Ramming . | . . . . Kinetic 797 | 66 490 174 67 Thermal 263 | . 101 162 . Explosive . | . . . . Electromagnetic . | . . . . Impact . | . . . . Slashing . | . . . . Piercing . | . . . . Highest Corruption . | . . . . Average Corruption . | . . . . Corruption Purged . | . . . . Corruption Blocked . | . . . . Overload Shots . | . . . . Overflow Damage . | . . . . Projectiles . | . . . . Explosions . | . . . . Melee . | . . . . Knockbacks . | . . . . Impact . | . . . . Kinetic . | . . . . Secondary . | . . . . Self-Inflicted Damage . | . . . . Shots . | . . . . Rammed . | . . . . Targets Rammed . | . . . . Kicked . | . . . . Crushed . | . . . . Highest Temperature 279 | . 72 279 . Average Temperature 59 | . 23 98 . Received Heat Transfer 354 | . 186 132 36 Siege Activations . | . . . . Robots Corrupted . | . . . . Combat Hostiles . | . . . . Parts Fried . | . . . . Impact Corruptions . | . . . . Robots Melted . | . . . . Combat Hostiles . | . . . . Parts Melted 2 | . 1 . 1 Heat Transferred 999 | . 444 555 . Parts Sabotaged . | . . . . Parts Stolen . | . . . . Parts Stripped . | . . . . Power Chain Reactions . | . . . . Alert | -11 -10 -10 -10 ------- Run | Yrd Mat Min Sub Peak Influence 154 | 15 146 154 . Initial 19 | . 9 19 . Average 46 | 3 38 73 . Maximum Alert Level . | . . . . Low Security (%) 100 | 100 100 100 . Level 1 . | . . . . Level 2 . | . . . . Level 3 . | . . . . Level 4 . | . . . . Level 5 . | . . . . High Security . | . . . . Max Security . | . . . . Squads Dispatched 3 | . 3 . . Investigation 1 | . 1 . . Extermination . | . . . . Reinforcement 2 | . 2 . . Assault . | . . . . Garrison . | . . . . Intercept . | . . . . Searches Triggered . | . . . . Construction Impeded . | . . . . Haulers Reinforced . | . . . . Active Scanning Responses . | . . . . Cargo Convoy Interrupts . | . . . . Stealth | -11 -10 -10 -10 --------- Run | Yrd Mat Min Sub Distress Signals . | . . . . Communications Jammed . | . . . . Distress Signals . | . . . . Times Spotted 29 | . 20 7 2 Peak Tracking Total 4 | . 3 4 2 Tactical Retreats 4 | . . 3 1 Traps | -11 -10 -10 -10 ------- Run | Yrd Mat Min Sub Traps Triggered 4 | . 2 . 2 Indirectly . | . . . . Trap Hack Attempts . | . . . . Triggered . | . . . . Disarmed . | . . . . Reprogrammed . | . . . . Reused . | . . . . Traps Extracted . | . . . . Installed . | . . . . Triggered . | . . . . Machines | -11 -10 -10 -10 ---------- Run | Yrd Mat Min Sub Machines Disabled . | . . . . Max in Single Turn . | . . . . Machines Repaired . | . . . . Machines Dismantled . | . . . . Machines Sabotaged . | . . . . Overloaded Fab Kills . | . . . . Hacking | -11 -10 -10 -10 --------- Run | Yrd Mat Min Sub Machines Accessed 2 | . 2 . . Terminals 2 | . 2 . . Fabricators . | . . . . Repair Stations . | . . . . Recycling Units . | . . . . Scanalyzers . | . . . . Garrison Access . | . . . . Total Hacks 2 | . 2 . . Successful 2 | . 2 . . Failed . | . . . . Catastrophic . | . . . . Database Lockouts . | . . . . Manual . | . . . . Terminals 2 | . 2 . . Fabricators . | . . . . Repair Stations . | . . . . Recycling Units . | . . . . Scanalyzers . | . . . . Garrison Access . | . . . . Terminal Hacks 2 | . 2 . . Robot Analysis 1 | . 1 . . Unreport Threat 1 | . 1 . . Fabricator Hacks . | . . . . Repair Station Hacks . | . . . . Recycling Unit Hacks . | . . . . Scanalyzer . | . . . . Garrison Access Hacks . | . . . . Unauthorized Hacks . | . . . . Terminals . | . . . . Fabricators . | . . . . Repair Stations . | . . . . Recycling Units . | . . . . Scanalyzers . | . . . . Garrison Access . | . . . . Data Cores Recovered . | . . . . Used . | . . . . Hacking Detections 1 | . 1 . . Full Trace Events . | . . . . Feedback Events . | . . . . Feedback Blocked . | . . . . Robot Schematics Acquired . | . . . . Robots Built . | . . . . Authchips . | . . . . Time . | . . . . Total Robot Build Rating . | . . . . Part Schematics Acquired . | . . . . Parts Built . | . . . . Authchips . | . . . . Time . | . . . . Total Part Build Rating . | . . . . Parts Repaired . | . . . . Time . | . . . . Parts Recycled . | . . . . Recycled Matter . | . . . . Retrieved Matter . | . . . . Retrieved Components . | . . . . Parts Scanalyzed . | . . . . Part Schematics Acquired . | . . . . Parts Damaged . | . . . . Bothacking | -11 -10 -10 -10 ------------ Run | Yrd Mat Min Sub Used RIF Installer . | . . . . Robots Hacked . | . . . . Non-combat . | . . . . Combat . | . . . . Robot Hacks Applied . | . . . . Relay Couplers Released . | . . . . Fabnet Peak Effective % . | . . . . Robots Rewired . | . . . . Allies Hacked . | . . . . Hacks Repelled . | . . . . Allies | -11 -10 -10 -10 -------- Run | Yrd Mat Min Sub Total Allies . | . . . . Largest Group . | . . . . Highest-Rated Group . | . . . . Highest-Rated Ally . | . . . . Total Orders . | . . . . Ally Attacks . | . . . . Total Damage . | . . . . Kills . | . . . . Allies Corrupted . | . . . . Allies Melted . | . . . . Intel | -11 -10 -10 -10 ------- Run | Yrd Mat Min Sub Robot Analysis Total 1 | . 1 . . Derelict Logs Recovered . | . . . . Drone Launches . | . . . . Drone Recoveries . | . . . . Exploration | -11 -10 -10 -10 ------------- Run | Yrd Mat Min Sub Turns Passed 1671 | 182 787 505 197 Spaces Moved 751 | 93 345 218 95 Core 2 | 2 . . . Treads 340 | 91 249 . . Legs 409 | . 96 218 95 Wheels . | . . . . Hover . | . . . . Flight . | . . . . Fastest Speed 50 | 50 160 190 190 Average Speed 176 | 157 168 190 190 Slowest Speed 190 | 160 190 190 190 Overloaded Moves . | . . . . Propulsion Burnouts . | . . . . Robots Hopped . | . . . . Cave-ins Triggered . | . . . . Exploration Rate (%) 29 | 9 48 51 10 Regions Visited 3 Branch Regions 2 Pre-discovered Areas . | . . . . Known Exits Taken . | . . . . Unknown Exits Taken 3 | 1 1 1 . Scrap Searched . | . . . . Spaces Dug 1 | . 1 . . Terrain Destroyed 1 | . 1 . . Melee 1 | . 1 . . Projectile . | . . . . AOE . | . . . . Terrain Rammed . | . . . . Walls Destroyed . | . . . . Machines Disabled . | . . . . Actions | -11 -10 -10 -10 --------- Run | Yrd Mat Min Sub Total 940 | 113 458 265 104 Wait 48 | . 32 13 3 Move 748 | 92 344 217 95 Hop . | . . . . Pick Up 25 | 7 14 3 1 Fast Attach 9 | 7 2 . . Attach 6 | . 2 3 1 Detach . | . . . . Swap 5 | . 3 2 . Drop 9 | . 8 1 . Fire 89 | 7 52 26 4 Melee 1 | . 1 . . Ram . | . . . . Kick . | . . . . Crush . | . . . . Escape Stasis . | . . . . Rewire . | . . . . Trap . | . . . . Miscellaneous . | . . . . Route ------- -11/Scrapyard -10/Materials (discovered 2 exits: [*Mat] / [*Min]) -10/Mines (discovered 2 exits: [*Mat] / [*Sub]) -10/Subcaves History --------- Turn | Location | Event 27 | -11/Scrapyard | Discovered new exit (range 16) 183 | -11/Scrapyard | Entered Materials 313 | -10/Materials | Build established: Mutant 418 | -10/Materials | Discovered new exit (range 5) 888 | -10/Materials | Discovered new exit (range 15) 970 | -10/Materials | Entered Mines 1047 | -10/Mines | Core integrity fell below 50% 1266 | -10/Mines | Discovered new exit (range 7) 1451 | -10/Mines | Build established: Scavenger-Mutant 1462 | -10/Mines | Discovered new exit (range 6) 1475 | -10/Mines | Entered Subcaves 1586 | -10/Subcaves | Core integrity fell below 20% 1672 | -10/Subcaves | Destroyed by Shrapnel Trap Last Messages --------------- 01321_ K-01 Serf collects debris. 01461_ U-05 Engineer builds a Wall. 01462_ EXIT=FOUND LOCATION=UNKNOWN AMBIENT_HEAT=-10 GOAL=ESCAPE 01574_ TH-SUK(R) emerges from the Twisted Machinery. 01595_ Disposable Heat Sink melted. 01595_ 9V-HBB(R) destroyed. 01598_ Acquired 18 matter. 01604_ Subatomizers dissect the Sub. Monowheel. 01607_ Acquired Sub. Optics. 01614_ Subatomizers dissect the Sub. Monowheel. 01665_ Triggered Piercing Trap. 01665_ Spikes shoot up from the floor. 01665_ Critical hit (Impale). 01665_ Lgt. Ion Engine destroyed. 01665_ Critical hit (Impale). 01672_ Triggered Shrapnel Trap. 01672_ An expanding cloud of shrapnel blasts out in all directions. Map ----- +----------------------------------------------------+ | ?????????????????????????????????????????????????? | | ?????????????????????????????????????????????????? | | ?????????????????????????????????????????????????? | | ?????????????????????????????????????????????????? | | ?????????????????????????????????????????????????? | | ?????????????????????????????????????????????????? | | ?????????????????????????????????????????????????? | | ?????????????????????????????????????????????????? | | ?????????????????????????????????????????????????? | | ?????????????????????????????????????????????????? | | ?????????????????????????????????????????????????? | | ?????????????????????????????????#??????????###??? | | ????????????????????????????????# ???????#### #?? | | ???????????????????????????????? ???????# ## | | ?????????????????????????????### ????????# | | ?????????????????????????????# #???????## | | ????????????????????????????## ##?####?# | | ????????????????????????????# ?## ### | | ????????????????????????????# ?# ## | | ????????????????????????????# #?# ### | | ?????????????????????????????# ### #### | | ?????????????# ??????????????# ####### | | ??????????????# ##########??# ##??? | | ???????????????# ^ #### #### | | ????????????????# ## ## | | ????????????????# ## # @ ## ## ### # | | ???????????????# # ##?## ## | | ???????????????# # #???## #### | | ???????????????#### # ^ #????# # | | ????????????????????#### ## # #?# | | ???????????????????????# ##### ## | | ???????????????????????##????# ## | | ?????????????????????????????# #### #### | | ?????????????????????????????## ####??#####"""#?# | | ??????????????????????????????###?????????#"""#?# | | ??????????????????????????????????????????#""##?# | | ?????????????????????????????????????????? ""#?? | | ?????????????????????????????????????????? ""#?""" | | ???????????????????????????????????????????????#"" | | ???????????????????????????????????????????????#"" | | ?????????????????????????????????????????????????" | | ?????????????????????????????????????????????????? | | ?????????????????????????????????????????????????? | | ?????????????????????????????????????????????????? | | ?????????????????????????????????????????????????? | | ?????????????????????????????????????????????????? | | ?????????????????????????????????????????????????? | | ?????????????????????????????????????????????????? | | ?????????????????????????????????????????????????? | | ?????????????????????????????????????????????????? | +----------------------------------------------------+ Best States ------------- Heat Dissipation 25 Energy Generation 10 Energy Capacity 250 Matter Stores 300 Matter Capacity 300 Sight Range 16 Terrain Scan Density 10 Evasion (%) 40 Recoil Reduction 2 Item Schematics ----------------- None Robot Schematics ------------------ None Fabricated ------------ Nothing Alien Tech Used ----------------- None Achievements -------------- Use The Force Challenges ------------ None Game ------ Seed HypervelocityMiniConstruct Manual? 0 Play Time 00:16:36 Cumulative 18.0 hours Start 2024.05.24 @ 11:25:06 End 2024.05.24 @ 11:40:48 Sessions 1 Manual Loads 0 Difficulty Rogue Special Mode None Game No. 21 Rogue 21 Adventurer 0 Explorer 0 Win Type - Total 0 Types 0/0/0/0/0/0/0/0/0 Lore% 16 Gallery% 20 Achievement% 16 Wizard Run 0 Options --------- Layout 0 ASCII 0 Keyboard 0 Movement Mouse Keybinds 0 Fullscreen 1 Font 36/Smallcaps Map View 76x50 Zoom Use 0% Tactical HUD 1 Map Filters NONE Filters NONE Steam 1 RUN: 9e7bac16-2e7f-447e-892c-850a50b84021